[Event "7th Cesme Open-A 2019"]
[Site "Cesme"]
[Date "2019.06.25"]
[Round "3"]
[White "Chighladze, Iveri"]
[Black "Iskandarov, Misratdin"]
[Result "1/2-1/2"]
[ECO "E32"]
[WhiteElo "2317"]
[BlackElo "2502"]
[Annotator "ChessBase"]
[PlyCount "107"]
[EventDate "2019.06.24"]
[EventType "swiss"]
[EventCountry "TUR"]
[SourceTitle "playchess.com"]
[Source "ChessBase"]
[SourceQuality "1"]
[TimeControl "5400+30"]

1. d4 {[%emt 0:00:30]} Nf6 {[%emt 0:00:30]} 2. c4 {[%emt 0:00:30]} e6 {[%emt 0:00:30]} 3. Nc3 {[%emt 0:00:30]} Bb4 {[%emt 0:00:30]} 4. Qc2 {[%emt 0:00:30]} O-O {[%emt 0:00:30]} 5. e4 {[%emt 0:03:30]} d5 {[%emt 0:01:30]} 6. e5 {[%emt 0:00:30]} Ne4 {[%emt 0:00:00]} 7. Bd3 {[%emt 0:00:00]} c5 {[%emt 0:04:00]} 8. cxd5 {[%emt 0:05:00]} exd5 {[%emt 0:00:30]} 9. Nge2 {[%emt 0:01:30]} Nc6 {[%emt 0:01:30]} 10. O-O {[%emt 0:02:30]} cxd4 {[%emt 0:16:30]} 11. Nxe4 {[%emt 0:10:30]} dxe4 {[%emt 0:00:30]} 12. Bxe4 {[%emt 0:00:30]} Nxe5 {[%emt 0:00:30]} 13. Rd1 {[%emt 0:12:30]} d3 {[%emt 0:01:30]} 14. Bxd3 {[%emt 0:01:30]} Nxd3 {[%emt 0:00:30]} 15. Rxd3 {[%emt 0:00:30]} Qe7 {[%emt 0:07:30]} 16. Rg3 {[%emt 0:12:30]} Kh8 {[%emt 0:08:30]} 17. a3 {[%emt 0:02:30]} Ba5 {[%emt 0:06:30]} 18. Be3 {[%emt 0:13:30]} Rd8 {[%emt 0:09:30]} 19. Bc5 {[%emt 0:15:34]} Qc7 {[%emt 0:08:30]} 20. b4 {[%emt 0:02:05]} Bb6 {[%emt 0:00:30]} 21. Qc3 {[%emt 0:00:30]} f6 {[%emt 0:00:30]} 22. Bxb6 {[%emt 0:01:12]} Qxc3 {[%emt 0:00:30]} 23. Rxc3 {[%emt 0:02:05]} axb6 {[%emt 0:01:30]} 24. Rac1 {[%emt 0:03:14]} Be6 {[%emt 0:00:30]} 25. h3 {[%emt 0:01:10]} b5 {[%emt 0:00:30]} 26. Rc7 {[%emt 0:01:23]} Bc4 {[%emt 0:01:30]} 27. Nc3 {[%emt 0:01:56]} Rxa3 {[%emt 0:05:30]} 28. Rxb7 {[%emt 0:00:04]} Rb3 {[%emt 0:00:30]} 29. Nxb5 {[%emt 0:00:41]} Rxb4 {[%emt 0:00:30]} 30. Nd6 {[%emt 0:00:30]} Rxb7 {[%emt 0:00:30]} 31. Nxb7 {[%emt 0:00:30]} Rd4 {[%emt 0:00:30]} 32. Na5 {[%emt 0:00:30]} Bg8 {[%emt 0:00:00]} 33. Rc8 {[%emt 0:00:20]} h5 {[%emt 0:00:00]} 34. Nc6 {[%emt 0:00:45]} Rd1+ {[%emt 0:01:30]} 35. Kh2 {[%emt 0:00:02]} Rd7 {[%emt 0:00:30]} 36. Kg3 {[%emt 0:01:57]} Kh7 {[%emt 0:03:30]} 37. Nb4 {[%emt 0:00:03]} Rd2 {[%emt 0:00:53]} 38. Rc2 {[%emt 0:00:27]} Rd4 {[%emt 0:01:26]} 39. Rb2 {[%emt 0:00:10]} g5 {[%emt 0:00:48]} 40. Kf3 {[%emt 0:00:08]} Bc4 {[%emt 0:00:30]} 41. Ke3 {[%emt 0:00:42]} Rd1 {[%emt 0:00:06]} 42. Rc2 {[%emt 0:00:42]} Bb5 {[%emt 0:02:49]} 43. f4 {[%emt 0:04:21]} Re1+ {[%emt 0:01:43]} 44. Kd4 {[%emt 0:00:01]} gxf4 {[%emt 0:00:31]} 45. Nd5 {[%emt 0:00:02]} f3 {[%emt 0:02:48]} 46. gxf3 {[%emt 0:00:26]} Rd1+ {[%emt 0:01:37]} 47. Kc5 {[%emt 0:00:02]} Bf1 {[%emt 0:02:39]} 48. Nxf6+ {[%emt 0:00:04]} Kg6 {[%emt 0:00:00]} 49. Nd5 {[%emt 0:01:15]} h4 {[%emt 0:01:11]} 50. Rb2 {[%emt 0:01:50]} Rc1+ {[%emt 0:03:16]} 51. Kd4 {[%emt 0:00:16]} Kf5 {[%emt 0:00:00]} 52. Ne3+ {[%emt 0:01:22]} Kf4 {[%emt 0:00:12]} 53. Nxf1 {[%emt 0:00:30]} Rxf1 {[%emt 0:00:30]} 54. Rg2 {[%emt 0:00:00]} 1/2-1/2

[Event "7th Cesme Open-A 2019"]
[Site "Cesme"]
[Date "2019.06.25"]
[Round "3"]
[White "Sevgi, Volkan"]
[Black "Cansun, Can Alp"]
[Result "1-0"]
[ECO "B26"]
[WhiteElo "2302"]
[BlackElo "2121"]
[Annotator "NA"]
[PlyCount "87"]
[EventDate "2019.06.24"]
[EventType "swiss"]
[EventCountry "TUR"]
[SourceTitle "playchess.com"]
[Source "ChessBase"]
[SourceQuality "1"]
[TimeControl "5400+30"]

1. e4 {[%emt 0:04:30]} c5 {[%emt 0:00:30]} 2. Nc3 {[%emt 0:00:30]} Nc6 {[%emt 0:00:00]} 3. g3 {[%emt 0:00:30]} g6 {[%emt 0:00:00]} 4. Bg2 {[%emt 0:00:30]} Bg7 {[%emt 0:00:30]} 5. d3 {[%emt 0:00:30]} d6 {[%emt 0:00:30]} 6. Be3 {[%emt 0:00:00]} Nd4 {[%emt 0:00:30]} 7. Qd2 {[%emt 0:00:00]} Qa5 {[%emt 0:00:30]} 8. f4 {[%emt 0:00:00]} e6 {[%emt 0:00:30]} 9. Nf3 {[%emt 0:00:00]} Ne7 {[%emt 0:00:00]} 10. O-O {[%emt 0:00:30]} Nec6 {[%emt 0:00:00]} 11. e5 {[%emt 0:00:00]} d5 {[%emt 0:00:30]} 12. a3 {[%emt 0:29:00]} f6 {[%emt 0:04:30]} 13. b4 {[%emt 0:03:30]} Qd8 {[%emt 0:00:30]} 14. Bxd4 {[%emt 0:16:30]} cxd4 {[%emt 0:01:30]} 15. Nb5 {[%emt 0:00:30]} fxe5 {[%emt 0:18:30]} 16. fxe5 {[%emt 0:00:30]} O-O {[%emt 0:02:30]} 17. Nbxd4 {[%emt 0:05:30]} Nxe5 {[%emt 0:11:30]} 18. Nxe5 {[%emt 0:04:30]} Bxe5 {[%emt 0:00:00]} 19. Qe3 {[%emt 0:02:30]} Bxd4 {[%emt 0:01:00]} 20. Rxf8+ {[%emt 0:01:30]} Qxf8 {[%emt 0:02:30]} 21. Qxd4 {[%emt 0:00:30]} Qg7 {[%emt 0:00:30]} 22. Qxg7+ {[%emt 0:00:30]} Kxg7 {[%emt 0:00:00]} 23. c4 {[%emt 0:00:00]} a5 {[%emt 0:03:00]} 24. b5 {[%emt 0:02:00]} Bd7 {[%emt 0:00:30]} 25. cxd5 {[%emt 0:02:30]} exd5 {[%emt 0:00:00]} 26. a4 {[%emt 0:00:30]} Be6 {[%emt 0:09:00]} 27. Rc1 {[%emt 0:00:30]} Rf8 {[%emt 0:00:30]} 28. Rc5 {[%emt 0:00:00]} Kf6 {[%emt 0:01:30]} 29. d4 {[%emt 0:02:00]} Re8 {[%emt 0:00:30]} 30. b6 {[%emt 0:01:30]} Rc8 {[%emt 0:06:30]} 31. Rxc8 {[%emt 0:05:16]} Bxc8 {[%emt 0:00:30]} 32. Bxd5 {[%emt 0:00:30]} Ke7 {[%emt 0:00:30]} 33. Kf2 {[%emt 0:00:30]} Kd6 {[%emt 0:00:30]} 34. Be4 {[%emt 0:00:00]} Bd7 {[%emt 0:00:30]} 35. Bxb7 {[%emt 0:00:14]} Bxa4 {[%emt 0:00:00]} 36. Be4 {[%emt 0:00:30]} Bd7 {[%emt 0:01:00]} 37. Ke3 {[%emt 0:00:33]} a4 {[%emt 0:01:30]} 38. Kd2 {[%emt 0:00:39]} a3 {[%emt 0:00:30]} 39. Kc3 {[%emt 0:00:18]} Ba4 {[%emt 0:00:30]} 40. h4 {[%emt 0:01:00]} Bd1 {[%emt 0:01:30]} 41. d5 {[%emt 0:00:28]} a2 {[%emt 0:02:30]} 42. Kb2 {[%emt 0:00:30]} Bb3 {[%emt 0:00:00]} 43. b7 {[%emt 0:00:18]} Kc7 {[%emt 0:00:00]} 44. d6+ {[%emt 0:00:14]} 1-0

[Event "7th Cesme Open-A 2019"]
[Site "Cesme"]
[Date "2019.06.25"]
[Round "3"]
[White "Bashirov, Teymur"]
[Black "Gokerkan, Cem Kaan"]
[Result "1-0"]
[ECO "B51"]
[WhiteElo "2238"]
[BlackElo "2415"]
[Annotator "NA"]
[PlyCount "103"]
[EventDate "2019.06.24"]
[EventType "swiss"]
[EventCountry "TUR"]
[SourceTitle "playchess.com"]
[Source "ChessBase"]
[SourceQuality "1"]
[TimeControl "5400+30"]

1. e4 {[%emt 0:00:30]} c5 {[%emt 0:05:30]} 2. Nf3 {[%emt 0:05:30]} d6 {[%emt 0:03:30]} 3. Bb5+ {[%emt 0:08:30]} Nc6 {[%emt 0:03:30]} 4. O-O {[%emt 0:02:30]} Bd7 {[%emt 0:00:30]} 5. d3 {[%emt 0:01:30]} a6 {[%emt 0:01:30]} 6. Bxc6 {[%emt 0:01:30]} Bxc6 {[%emt 0:00:30]} 7. Nbd2 {[%emt 0:01:30]} b5 {[%emt 0:04:30]} 8. a3 {[%emt 0:01:30]} Nf6 {[%emt 0:01:30]} 9. b4 {[%emt 0:02:30]} e6 {[%emt 0:03:30]} 10. Nb3 {[%emt 0:01:30]} Rc8 {[%emt 0:01:30]} 11. Na5 {[%emt 0:01:30]} Ba8 {[%emt 0:01:30]} 12. c4 {[%emt 0:02:30]} Be7 {[%emt 0:15:30]} 13. cxb5 {[%emt 0:01:30]} axb5 {[%emt 0:00:30]} 14. a4 {[%emt 0:00:30]} bxa4 {[%emt 0:26:30]} 15. Qxa4+ {[%emt 0:01:30]} Nd7 {[%emt 0:01:30]} 16. bxc5 {[%emt 0:01:30]} Rxc5 {[%emt 0:07:05]} 17. Be3 {[%emt 0:03:30]} Rc8 {[%emt 0:00:30]} 18. Nd4 {[%emt 0:03:30]} O-O {[%emt 0:02:27]} 19. Ndc6 {[%emt 0:01:30]} Bxc6 {[%emt 0:01:46]} 20. Nxc6 {[%emt 0:02:30]} Qe8 {[%emt 0:00:01]} 21. Nxe7+ {[%emt 0:03:30]} Qxe7 {[%emt 0:00:30]} 22. Qa7 {[%emt 0:00:00]} Qd8 {[%emt 0:01:32]} 23. Qd4 {[%emt 0:01:00]} Nc5 {[%emt 0:01:29]} 24. Ra7 {[%emt 0:02:30]} Qb6 {[%emt 0:01:25]} 25. Ra3 {[%emt 0:05:30]} Rfd8 {[%emt 0:02:15]} 26. f4 {[%emt 0:01:30]} Qb7 {[%emt 0:03:39]} 27. f5 {[%emt 0:01:30]} e5 {[%emt 0:02:25]} 28. Qa1 {[%emt 0:03:30]} Qc6 {[%emt 0:05:05]} 29. Rc1 {[%emt 0:01:30]} Qb5 {[%emt 0:01:01]} 30. Qa2 {[%emt 0:02:30]} h6 {[%emt 0:01:33]} 31. Rb1 {[%emt 0:02:30]} Qc6 {[%emt 0:00:09]} 32. Ra7 {[%emt 0:01:30]} Rd7 {[%emt 0:00:00]} 33. Ra3 {[%emt 0:00:30]} Rdd8 {[%emt 0:00:57]} 34. Ra1 {[%emt 0:01:30]} d5 {[%emt 0:00:59]} 35. exd5 {[%emt 0:02:30]} Qf6 {[%emt 0:00:00]} 36. Qf2 {[%emt 0:01:30]} Nb7 {[%emt 0:00:28]} 37. Ra6 {[%emt 0:01:30]} Rd6 {[%emt 0:00:13]} 38. Ra7 {[%emt 0:01:30]} Rd7 {[%emt 0:00:55]} 39. Qb2 {[%emt 0:01:30]} Rcc7 {[%emt 0:00:37]} 40. Ra8+ {[%emt 0:01:30]} Kh7 {[%emt 0:00:13]} 41. Bb6 {[%emt 0:01:30]} Qxf5 {[%emt 0:00:30]} 42. Bxc7 {[%emt 0:02:30]} Rxc7 {[%emt 0:00:01]} 43. R8a7 {[%emt 0:00:00]} Qxd3 {[%emt 0:00:25]} 44. Qb1 {[%emt 0:02:00]} e4 {[%emt 0:01:05]} 45. Qxd3 {[%emt 0:02:45]} exd3 {[%emt 0:00:30]} 46. d6 {[%emt 0:00:11]} Rd7 {[%emt 0:00:00]} 47. Kf1 {[%emt 0:03:36]} Kg6 {[%emt 0:00:06]} 48. Rb1 {[%emt 0:01:42]} d2 {[%emt 0:00:25]} 49. Ke2 {[%emt 0:01:18]} d1=Q+ {[%emt 0:00:20]} 50. Rxd1 {[%emt 0:01:21]} Kf6 {[%emt 0:00:25]} 51. Rb1 {[%emt 0:01:39]} Nc5 {[%emt 0:00:16]} 52. Rc7 {[%emt 0:00:59]} 1-0

[Event "7th Cesme Open-A 2019"]
[Site "Cesme"]
[Date "2019.06.25"]
[Round "3"]
[White "Kara, Yanki"]
[Black "Tuncer, Tuna"]
[Result "1-0"]
[ECO "A49"]
[WhiteElo "2186"]
[BlackElo "2365"]
[Annotator "NA"]
[PlyCount "57"]
[EventDate "2019.06.24"]
[EventType "swiss"]
[EventCountry "TUR"]
[SourceTitle "playchess.com"]
[Source "ChessBase"]
[SourceQuality "1"]
[TimeControl "5400+30"]

1. Nf3 {[%emt 0:03:30]} Nf6 {[%emt 0:00:30]} 2. g3 {[%emt 0:00:30]} g6 {[%emt 0:00:00]} 3. b3 {[%emt 0:00:30]} Bg7 {[%emt 0:00:00]} 4. Bb2 {[%emt 0:00:30]} O-O {[%emt 0:00:30]} 5. Bg2 {[%emt 0:00:30]} d6 {[%emt 0:00:00]} 6. d4 {[%emt 0:00:00]} b5 {[%emt 0:00:00]} 7. Nbd2 {[%emt 0:00:00]} Bb7 {[%emt 0:00:00]} 8. c4 {[%emt 0:00:30]} bxc4 {[%emt 0:00:00]} 9. Nxc4 {[%emt 0:00:30]} Nbd7 {[%emt 0:00:30]} 10. O-O {[%emt 0:00:30]} a5 {[%emt 0:01:30]} 11. Rc1 {[%emt 0:02:30]} Ra6 {[%emt 0:00:30]} 12. Qc2 {[%emt 0:15:30]} Qa8 {[%emt 0:06:30]} 13. Rfe1 {[%emt 0:00:30]} Be4 {[%emt 0:02:30]} 14. Qd1 {[%emt 0:00:30]} c5 {[%emt 0:03:30]} 15. Ncd2 {[%emt 0:06:30]} Bb7 {[%emt 0:08:30]} 16. e4 {[%emt 0:02:30]} Nxe4 {[%emt 0:15:30]} 17. Nxe4 {[%emt 0:01:30]} Bxe4 {[%emt 0:00:00]} 18. Rxe4 {[%emt 0:01:30]} Qxe4 {[%emt 0:00:00]} 19. Nh4 {[%emt 0:00:30]} Qe6 {[%emt 0:04:30]} 20. d5 {[%emt 0:00:30]} Bxb2 {[%emt 0:00:30]} 21. dxe6 {[%emt 0:00:30]} Bxc1 {[%emt 0:00:30]} 22. Qxc1 {[%emt 0:01:30]} Nf6 {[%emt 0:02:30]} 23. exf7+ {[%emt 0:00:30]} Rxf7 {[%emt 0:00:00]} 24. Nf3 {[%emt 0:01:30]} Ra7 {[%emt 0:01:00]} 25. Ng5 {[%emt 0:04:30]} Rf8 {[%emt 0:00:30]} 26. Ne6 {[%emt 0:00:30]} Rf7 {[%emt 0:01:30]} 27. Qc4 {[%emt 0:01:30]} Kh8 {[%emt 0:02:30]} 28. Qb5 {[%emt 0:00:00]} Nd7 {[%emt 0:00:30]} 29. Bc6 {[%emt 0:00:00]} 1-0

[Event "7th Cesme Open-A 2019"]
[Site "Cesme"]
[Date "2019.06.25"]
[Round "3"]
[White "Aliyev, Elnur"]
[Black "Annageldyev, Orazly"]
[Result "1/2-1/2"]
[ECO "B75"]
[WhiteElo "2155"]
[BlackElo "2353"]
[Annotator "NA"]
[PlyCount "87"]
[EventDate "2019.06.24"]
[EventType "swiss"]
[EventCountry "TUR"]
[SourceTitle "playchess.com"]
[Source "ChessBase"]
[SourceQuality "1"]
[TimeControl "5400+30"]

1. e4 {[%emt 0:03:30]} c5 {[%emt 0:00:30]} 2. Nf3 {[%emt 0:00:00]} d6 {[%emt 0:00:30]} 3. d4 {[%emt 0:00:00]} cxd4 {[%emt 0:00:30]} 4. Nxd4 {[%emt 0:00:30]} Nf6 {[%emt 0:00:00]} 5. Nc3 {[%emt 0:00:30]} g6 {[%emt 0:00:00]} 6. Be3 {[%emt 0:00:00]} Bg7 {[%emt 0:00:00]} 7. f3 {[%emt 0:00:00]} a6 {[%emt 0:00:00]} 8. Qd2 {[%emt 0:00:30]} Qc7 {[%emt 0:02:30]} 9. O-O-O {[%emt 0:00:30]} b5 {[%emt 0:00:30]} 10. e5 {[%emt 0:21:30]} b4 {[%emt 0:13:30]} 11. Ndb5 {[%emt 0:18:30]} axb5 {[%emt 0:08:30]} 12. exf6 {[%emt 0:02:30]} bxc3 {[%emt 0:01:30]} 13. Qd5 {[%emt 0:00:30]} cxb2+ {[%emt 0:08:30]} 14. Kb1 {[%emt 0:00:30]} Bxf6 {[%emt 0:06:30]} 15. Bxb5+ {[%emt 0:00:30]} Bd7 {[%emt 0:04:30]} 16. Bxd7+ {[%emt 0:00:30]} Qxd7 {[%emt 0:00:30]} 17. Qxa8 {[%emt 0:00:30]} O-O {[%emt 0:00:30]} 18. Qe4 {[%emt 0:11:30]} Nc6 {[%emt 0:05:30]} 19. h4 {[%emt 0:03:30]} Rd8 {[%emt 0:29:19]} 20. Bg5 {[%emt 0:13:30]} d5 {[%emt 0:05:40]} 21. Qe3 {[%emt 0:01:36]} d4 {[%emt 0:02:37]} 22. Bxf6 {[%emt 0:06:18]} dxe3 {[%emt 0:00:51]} 23. Rxd7 {[%emt 0:00:30]} Rxd7 {[%emt 0:00:30]} 24. Bc3 {[%emt 0:00:00]} Ne5 {[%emt 0:01:18]} 25. Kxb2 {[%emt 0:04:11]} Rb7+ {[%emt 0:00:24]} 26. Ka1 {[%emt 0:03:40]} Nc4 {[%emt 0:01:34]} 27. Rb1 {[%emt 0:00:46]} Rxb1+ {[%emt 0:00:50]} 28. Kxb1 {[%emt 0:00:42]} Kf8 {[%emt 0:00:10]} 29. Kc1 {[%emt 0:00:30]} e2 {[%emt 0:00:17]} 30. Be1 {[%emt 0:00:02]} Ke8 {[%emt 0:00:48]} 31. c3 {[%emt 0:00:00]} Kd7 {[%emt 0:00:00]} 32. Kc2 {[%emt 0:04:38]} Ne3+ {[%emt 0:00:08]} 33. Kd3 {[%emt 0:00:09]} Nxg2 {[%emt 0:00:30]} 34. Kxe2 {[%emt 0:00:00]} Nxe1 {[%emt 0:02:54]} 35. Kxe1 {[%emt 0:00:13]} Kd6 {[%emt 0:00:32]} 36. Kf2 {[%emt 0:03:36]} e5 {[%emt 0:00:41]} 37. a4 {[%emt 0:02:27]} Kc5 {[%emt 0:00:06]} 38. Ke3 {[%emt 0:00:35]} f5 {[%emt 0:00:14]} 39. Kd3 {[%emt 0:00:03]} h6 {[%emt 0:00:46]} 40. Ke3 {[%emt 0:00:18]} g5 {[%emt 0:01:53]} 41. hxg5 {[%emt 0:00:59]} hxg5 {[%emt 0:00:10]} 42. Kd3 {[%emt 0:00:04]} g4 {[%emt 0:01:06]} 43. fxg4 {[%emt 0:00:30]} fxg4 {[%emt 0:00:00]} 44. Ke4 {[%emt 0:00:06]} 1/2-1/2

[Event "7th Cesme Open-A 2019"]
[Site "Cesme"]
[Date "2019.06.25"]
[Round "3"]
[White "Yilmaz, Goktan"]
[Black "Barsov, Alexei"]
[Result "1/2-1/2"]
[ECO "C19"]
[WhiteElo "2155"]
[BlackElo "2397"]
[Annotator "NA"]
[PlyCount "81"]
[EventDate "2019.06.24"]
[EventType "swiss"]
[EventCountry "TUR"]
[SourceTitle "playchess.com"]
[Source "ChessBase"]
[SourceQuality "1"]
[TimeControl "5400+30"]

1. e4 {[%emt 0:00:30]} e6 {[%emt 0:00:30]} 2. d4 {[%emt 0:01:30]} d5 {[%emt 0:00:00]} 3. Nc3 {[%emt 0:00:30]} Bb4 {[%emt 0:00:00]} 4. e5 {[%emt 0:00:00]} c5 {[%emt 0:02:30]} 5. a3 {[%emt 0:00:00]} Bxc3+ {[%emt 0:00:30]} 6. bxc3 {[%emt 0:00:30]} Ne7 {[%emt 0:00:00]} 7. a4 {[%emt 0:00:30]} Qc7 {[%emt 0:07:00]} 8. Nf3 {[%emt 0:00:30]} b6 {[%emt 0:00:30]} 9. Bb5+ {[%emt 0:00:00]} Bd7 {[%emt 0:00:30]} 10. Bd3 {[%emt 0:00:00]} Nbc6 {[%emt 0:00:30]} 11. O-O {[%emt 0:00:30]} h6 {[%emt 0:00:30]} 12. h4 {[%emt 0:05:30]} Na5 {[%emt 0:12:30]} 13. Ba3 {[%emt 0:13:30]} Bxa4 {[%emt 0:06:30]} 14. Qd2 {[%emt 0:08:30]} Bd7 {[%emt 0:22:30]} 15. Qf4 {[%emt 0:09:30]} f5 {[%emt 0:03:30]} 16. Rfb1 {[%emt 0:10:30]} O-O {[%emt 0:01:30]} 17. dxc5 {[%emt 0:05:30]} bxc5 {[%emt 0:00:30]} 18. Bb5 {[%emt 0:00:00]} Rfd8 {[%emt 0:23:57]} 19. Bxd7 {[%emt 0:19:00]} Rxd7 {[%emt 0:00:32]} 20. Rb5 {[%emt 0:00:30]} Nc4 {[%emt 0:00:56]} 21. Bxc5 {[%emt 0:04:13]} Nc6 {[%emt 0:04:56]} 22. Nd4 {[%emt 0:03:29]} Re8 {[%emt 0:01:55]} 23. Ra6 {[%emt 0:01:57]} N4xe5 {[%emt 0:00:14]} 24. Nxc6 {[%emt 0:03:56]} Nxc6 {[%emt 0:00:00]} 25. Qxc7 {[%emt 0:00:18]} Rxc7 {[%emt 0:00:00]} 26. Bd6 {[%emt 0:00:14]} Rcc8 {[%emt 0:00:27]} 27. Rc5 {[%emt 0:00:50]} Nb8 {[%emt 0:00:42]} 28. Rxc8 {[%emt 0:01:09]} Rxc8 {[%emt 0:00:31]} 29. Rxa7 {[%emt 0:00:07]} Nc6 {[%emt 0:00:34]} 30. Ra6 {[%emt 0:00:05]} e5 {[%emt 0:01:54]} 31. f4 {[%emt 0:01:16]} e4 {[%emt 0:01:33]} 32. Kf2 {[%emt 0:00:02]} d4 {[%emt 0:01:56]} 33. c4 {[%emt 0:01:05]} Kf7 {[%emt 0:00:09]} 34. Bc5 {[%emt 0:02:00]} h5 {[%emt 0:03:30]} 35. Ra3 {[%emt 0:02:50]} g6 {[%emt 0:03:23]} 36. Ke2 {[%emt 0:03:48]} Ke6 {[%emt 0:01:05]} 37. Rg3 {[%emt 0:00:10]} Kf7 {[%emt 0:00:29]} 38. Ra3 {[%emt 0:00:07]} Rd8 {[%emt 0:00:15]} 39. Ra6 {[%emt 0:00:13]} Rc8 {[%emt 0:00:46]} 40. Ra3 {[%emt 0:00:14]} Rd8 {[%emt 0:00:15]} 41. Ra6 {[%emt 0:00:05]} 1/2-1/2

[Event "7th Cesme Open-A 2019"]
[Site "Cesme"]
[Date "2019.06.25"]
[Round "3"]
[White "Rzayev, Askar Aliakbar"]
[Black "Can, Melih Kaan"]
[Result "1-0"]
[ECO "A65"]
[WhiteElo "2089"]
[BlackElo "2204"]
[Annotator "NA"]
[PlyCount "99"]
[EventDate "2019.06.24"]
[EventType "swiss"]
[EventCountry "TUR"]
[SourceTitle "playchess.com"]
[Source "ChessBase"]
[SourceQuality "1"]
[TimeControl "5400+30"]

1. d4 {[%emt 0:00:30]} Nf6 {[%emt 0:17:30]} 2. c4 {[%emt 0:00:30]} c5 {[%emt 0:00:30]} 3. d5 {[%emt 0:00:00]} e6 {[%emt 0:01:30]} 4. Nc3 {[%emt 0:00:00]} exd5 {[%emt 0:00:30]} 5. cxd5 {[%emt 0:00:30]} d6 {[%emt 0:00:30]} 6. e4 {[%emt 0:00:00]} g6 {[%emt 0:00:00]} 7. Nge2 {[%emt 0:00:00]} Bg7 {[%emt 0:00:00]} 8. Ng3 {[%emt 0:00:00]} O-O {[%emt 0:00:30]} 9. Be2 {[%emt 0:00:00]} a6 {[%emt 0:00:30]} 10. a4 {[%emt 0:00:00]} Nbd7 {[%emt 0:01:30]} 11. O-O {[%emt 0:00:00]} h5 {[%emt 0:00:30]} 12. Bg5 {[%emt 0:00:00]} Qe8 {[%emt 0:01:30]} 13. h3 {[%emt 0:02:00]} Nh7 {[%emt 0:00:30]} 14. Bf4 {[%emt 0:03:30]} h4 {[%emt 0:04:30]} 15. Nh1 {[%emt 0:00:30]} Ne5 {[%emt 0:03:30]} 16. Be3 {[%emt 0:05:30]} g5 {[%emt 0:04:30]} 17. Qd2 {[%emt 0:04:30]} Qe7 {[%emt 0:00:30]} 18. f4 {[%emt 0:04:30]} gxf4 {[%emt 0:01:30]} 19. Bxf4 {[%emt 0:00:30]} Ng6 {[%emt 0:09:30]} 20. Bh6 {[%emt 0:03:30]} f5 {[%emt 0:00:30]} 21. Bxg7 {[%emt 0:02:30]} Qxg7 {[%emt 0:00:30]} 22. exf5 {[%emt 0:10:30]} Bxf5 {[%emt 0:00:30]} 23. Nf2 {[%emt 0:00:30]} Ne5 {[%emt 0:02:30]} 24. Kh1 {[%emt 0:06:30]} Kh8 {[%emt 0:00:30]} 25. Nfe4 {[%emt 0:01:30]} Qg6 {[%emt 0:01:30]} 26. Rf4 {[%emt 0:03:30]} Rg8 {[%emt 0:06:30]} 27. Bf1 {[%emt 0:04:30]} Bxh3 {[%emt 0:02:30]} 28. Qf2 {[%emt 0:02:30]} Raf8 {[%emt 0:01:30]} 29. Rxf8 {[%emt 0:09:30]} Rxf8 {[%emt 0:00:30]} 30. Qd2 {[%emt 0:12:30]} Bf5 {[%emt 0:06:30]} 31. Re1 {[%emt 0:04:30]} Rg8 {[%emt 0:09:30]} 32. Nxd6 {[%emt 0:02:11]} Nf3 {[%emt 0:04:24]} 33. Nf7+ {[%emt 0:01:07]} Qxf7 {[%emt 0:00:03]} 34. gxf3 {[%emt 0:00:06]} Qg6 {[%emt 0:08:36]} 35. Qh2 {[%emt 0:00:42]} Ng5 {[%emt 0:01:15]} 36. Re3 {[%emt 0:06:01]} Nf7 {[%emt 0:04:10]} 37. Re7 {[%emt 0:02:33]} Qf6 {[%emt 0:00:39]} 38. Rxb7 {[%emt 0:02:10]} Rg3 {[%emt 0:06:42]} 39. Qe2 {[%emt 0:05:09]} Qd4 {[%emt 0:00:18]} 40. Qh2 {[%emt 0:01:44]} Qf4 {[%emt 0:00:50]} 41. Rxf7 {[%emt 0:01:24]} Qxf3+ {[%emt 0:00:47]} 42. Bg2 {[%emt 0:00:06]} Qf4 {[%emt 0:00:15]} 43. Rxf5 {[%emt 0:00:40]} Qxf5 {[%emt 0:00:30]} 44. Qxh4+ {[%emt 0:00:30]} Qh7 {[%emt 0:00:00]} 45. Qxh7+ {[%emt 0:00:00]} Kxh7 {[%emt 0:00:00]} 46. d6 {[%emt 0:00:06]} Rg7 {[%emt 0:00:04]} 47. Ne4 {[%emt 0:00:30]} Kg6 {[%emt 0:00:30]} 48. Nxc5 {[%emt 0:00:30]} Kf6 {[%emt 0:01:28]} 49. d7 {[%emt 0:01:34]} Rg8 {[%emt 0:00:14]} 50. Nb7 {[%emt 0:00:00]} 1-0

[Event "7th Cesme Open-A 2019"]
[Site "Cesme"]
[Date "2019.06.25"]
[Round "3"]
[White "Erdogan, Anil Berk"]
[Black "Rzayev, Bahruz"]
[Result "1/2-1/2"]
[ECO "B43"]
[WhiteElo "2087"]
[BlackElo "2340"]
[Annotator "NA"]
[PlyCount "67"]
[EventDate "2019.06.24"]
[EventType "swiss"]
[EventCountry "TUR"]
[SourceTitle "playchess.com"]
[Source "ChessBase"]
[SourceQuality "1"]
[TimeControl "5400+30"]

1. e4 {[%emt 0:04:30]} c5 {[%emt 0:00:30]} 2. Nf3 {[%emt 0:00:30]} e6 {[%emt 0:00:00]} 3. d4 {[%emt 0:00:30]} cxd4 {[%emt 0:00:00]} 4. Nxd4 {[%emt 0:00:30]} a6 {[%emt 0:00:30]} 5. Nc3 {[%emt 0:00:30]} Qc7 {[%emt 0:00:30]} 6. g3 {[%emt 0:00:30]} Bb4 {[%emt 0:00:00]} 7. Bd2 {[%emt 0:03:30]} Nf6 {[%emt 0:01:00]} 8. Bg2 {[%emt 0:02:30]} Nc6 {[%emt 0:00:30]} 9. Nb3 {[%emt 0:01:30]} O-O {[%emt 0:05:30]} 10. O-O {[%emt 0:00:00]} Rd8 {[%emt 0:05:30]} 11. a3 {[%emt 0:11:00]} Be7 {[%emt 0:00:30]} 12. Qe2 {[%emt 0:07:30]} b5 {[%emt 0:08:30]} 13. Nd5 {[%emt 0:05:30]} exd5 {[%emt 0:05:30]} 14. exd5 {[%emt 0:00:30]} Re8 {[%emt 0:02:30]} 15. dxc6 {[%emt 0:01:30]} dxc6 {[%emt 0:00:30]} 16. Ba5 {[%emt 0:05:30]} Qd7 {[%emt 0:02:30]} 17. Rad1 {[%emt 0:03:30]} Nd5 {[%emt 0:00:30]} 18. Qd3 {[%emt 0:05:30]} Bb7 {[%emt 0:06:30]} 19. c4 {[%emt 0:02:30]} bxc4 {[%emt 0:02:30]} 20. Qxc4 {[%emt 0:00:30]} Rac8 {[%emt 0:06:30]} 21. Rfe1 {[%emt 0:06:30]} Bf8 {[%emt 0:07:30]} 22. Nc5 {[%emt 0:01:30]} Bxc5 {[%emt 0:00:30]} 23. Qxc5 {[%emt 0:00:30]} Rxe1+ {[%emt 0:01:30]} 24. Rxe1 {[%emt 0:08:30]} Re8 {[%emt 0:02:30]} 25. Rxe8+ {[%emt 0:01:30]} Qxe8 {[%emt 0:00:00]} 26. Qa7 {[%emt 0:05:30]} Qa8 {[%emt 0:00:00]} 27. Qxa8+ {[%emt 0:06:50]} Bxa8 {[%emt 0:00:30]} 28. Bxd5 {[%emt 0:02:34]} cxd5 {[%emt 0:00:30]} 29. Kf1 {[%emt 0:00:00]} Kf8 {[%emt 0:01:30]} 30. Ke2 {[%emt 0:00:13]} Ke7 {[%emt 0:00:30]} 31. Ke3 {[%emt 0:00:00]} Bc6 {[%emt 0:00:30]} 32. Kd4 {[%emt 0:00:07]} Ke6 {[%emt 0:00:00]} 33. Bc3 {[%emt 0:02:03]} g5 {[%emt 0:01:00]} 34. h4 {[%emt 0:01:42]} 1/2-1/2